bitfinex/quotes_BTCUSD_20230113
["timestamp","ask_amount","ask_price","bid_price","bid_amount"]
[1673592689634,0.1115331,18833.0,18832.0,1.90084085]
[1673592690140,0.11141755,18833.0,18832.0,2.20084085]
[1673592691599,0.11141755,18833.0,18832.0,1.90084085]
[1673592694299,0.11142325,18833.0,18832.0,2.20084085]
[1673592694537,0.11142325,18833.0,18832.0,1.90084085]
[1673592695327,0.11142325,18833.0,18832.0,2.20084085]
[1673592695568,0.11142325,18833.0,18832.0,1.90084085]
[1673592696026,0.11142325,18833.0,18832.0,1.90072715]
[1673592699254,0.11142325,18833.0,18832.0,1.75972715]
[1673592699507,0.11142325,18833.0,18832.0,1.42961715]
[1673592701577,0.11142325,18833.0,18832.0,1.72961715]
[1673592701801,0.11142325,18833.0,18832.0,2.05972715]
[1673592702872,0.11142325,18833.0,18832.0,2.21820982]
[1673592704050,0.11142325,18833.0,18832.0,2.49499956]
[1673592704531,0.11142325,18833.0,18832.0,2.79448222]
[1673592704988,0.11142325,18833.0,18832.0,2.95296488]
[1673592705464,0.11142325,18833.0,18832.0,2.57291231]
[1673592705707,0.11142325,18833.0,18832.0,3.18782311]
[1673592706218,0.01042325,18833.0,18832.0,2.70482142]
[1673592706475,0.03142325,18833.0,18832.0,3.07824956]
[1673592707615,0.01042325,18833.0,18832.0,3.07524956]
[1673592707877,0.02042325,18833.0,18832.0,3.62925125]
[1673592708121,0.02042325,18833.0,18832.0,3.15424956]
[1673592709369,0.02042325,18833.0,18832.0,3.41972956]
[1673592709817,0.02042325,18833.0,18832.0,4.42096395]
[1673592710082,0.02042325,18833.0,18832.0,3.94596226]
[1673592710759,0.02042325,18833.0,18832.0,4.42096395]
[1673592711228,0.01315971,18836.0,18833.0,0.10204207]
[1673592711448,0.01315971,18836.0,18835.0,0.8175618]
[1673592711667,0.01315971,18836.0,18835.0,2.54361046]
[1673592711882,0.01315971,18836.0,18835.0,2.96739517]
[1673592712114,0.01315971,18836.0,18835.0,2.80895282]
[1673592712597,0.01315971,18836.0,18835.0,2.80895176]
[1673592713043,0.05915971,18836.0,18835.0,2.81795176]
[1673592713972,0.01315971,18836.0,18835.0,2.80895176]
[1673592714190,0.01515971,18836.0,18835.0,2.846814]
[1673592714622,0.01646265,18836.0,18835.0,2.80788602]
[1673592715056,0.01646265,18836.0,18835.0,2.84681342]
[1673592715505,0.01646265,18836.0,18835.0,2.6885674]
[1673592715946,0.01646265,18836.0,18835.0,3.05832688]
[1673592716162,0.01646265,18836.0,18835.0,2.89975633]
[1673592716780,0.01646265,18836.0,18835.0,2.90825633]
[1673592717435,0.01646265,18836.0,18835.0,2.57347933]
[1673592717694,0.01646265,18836.0,18835.0,2.08101821]
[1673592717882,0.01646265,18836.0,18835.0,1.70474732]
[1673592719379,0.01646265,18836.0,18835.0,2.00474732]
[1673592724361,0.01646265,18836.0,18835.0,1.40365478]
[1673592724624,0.01646265,18836.0,18835.0,1.54365478]
[1673592724857,0.01646265,18836.0,18835.0,1.70177226]
[1673592725396,0.01646265,18836.0,18835.0,1.54365478]
[1673592726175,0.01646265,18836.0,18835.0,2.0722004]
[1673592726393,0.01646265,18836.0,18835.0,1.9322004]
[1673592726859,0.01646265,18836.0,18835.0,1.56177226]
[1673592727106,0.01646265,18836.0,18835.0,2.20862294]
[1673592727378,0.01646265,18836.0,18835.0,2.36719489]
[1673592728365,0.01646265,18836.0,18835.0,2.05050546]
[1673592728626,0.01646265,18836.0,18835.0,2.20856715]
[1673592729334,0.01646265,18836.0,18835.0,2.50819489]
[1673592730084,0.01646265,18836.0,18835.0,2.34956361]
[1673592730384,0.01646265,18836.0,18835.0,2.34955431]
[1673592731138,0.01646265,18836.0,18835.0,2.86060965]
[1673592731656,0.01646265,18836.0,18835.0,2.54392022]
[1673592731891,0.01646265,18836.0,18835.0,2.80934022]
[1673592732126,6.5e-07,18836.0,18835.0,3.33557292]
[1673592732362,0.01416394,18838.0,18836.0,0.00164626]
[1673592732574,0.01416394,18838.0,18837.0,1.29715478]
[1673592733096,0.01416394,18838.0,18837.0,1.59715478]
[1673592733830,0.01416394,18838.0,18837.0,1.45705478]
[1673592734075,0.04916394,18838.0,18837.0,1.45905478]
[1673592734320,0.04916394,18838.0,18837.0,2.01538187]
[1673592734535,0.04916394,18838.0,18837.0,1.91645796]
[1673592735066,0.05046506,18838.0,18837.0,1.91645796]
[1673592735581,0.05046506,18838.0,18837.0,1.92495796]
[1673592735835,0.05046506,18838.0,18837.0,1.78445796]
[1673592740278,0.05046506,18838.0,18837.0,1.78338187]
[1673592742793,0.05046506,18838.0,18837.0,1.48338187]
[1673592743290,0.05046506,18838.0,18837.0,1.48445796]
[1673592744522,0.05046506,18838.0,18837.0,1.15434796]
[1673592744767,0.05046506,18838.0,18837.0,1.48445796]
[1673592746226,0.05046506,18838.0,18837.0,1.78445796]
[1673592748435,0.05046506,18838.0,18837.0,1.94245507]
[1673592749386,0.05046506,18838.0,18837.0,1.78445796]
[1673592750389,0.05046506,18838.0,18837.0,1.48445796]
[1673592750635,0.05046506,18838.0,18837.0,1.78445796]
[1673592750884,0.05046506,18838.0,18837.0,1.48445796]
[1673592751134,0.05046506,18838.0,18837.0,1.78445796]
[1673592752775,0.05046506,18838.0,18837.0,1.94245507]
[1673592754853,0.05046506,18838.0,18837.0,1.94137898]
[1673592755092,0.05046624,18838.0,18837.0,1.78338187]
[1673592755254,0.05038403,18838.0,18837.0,1.48338187]
[1673592755461,0.05038403,18838.0,18837.0,1.15327187]
[1673592756190,0.05038403,18838.0,18837.0,1.48338187]
[1673592757151,0.05038403,18838.0,18837.0,1.78338187]
[1673592758323,0.05038403,18838.0,18837.0,1.78445796]
[1673592758572,0.05038403,18838.0,18837.0,1.45434796]
[1673592758804,0.05038403,18838.0,18837.0,1.48445796]
[1673592760489,0.05038403,18838.0,18837.0,1.78445796]
[1673592760953,0.05038403,18838.0,18837.0,1.48445796]
[1673592761414,0.05038403,18838.0,18837.0,1.15434796]
[1673592761629,0.05038403,18838.0,18837.0,1.48445796]
[1673592762166,0.05038403,18838.0,18837.0,1.78445796]
[1673592762374,0.05038403,18838.0,18837.0,1.48445796]
[1673592762516,0.05038403,18838.0,18837.0,1.78445796]
[1673592762985,0.05038403,18838.0,18837.0,1.64245507]
[1673592763215,0.05038403,18838.0,18837.0,1.61234507]
[1673592763513,0.05038403,18838.0,18837.0,1.78445796]
[1673592764175,0.05038403,18838.0,18837.0,1.45434796]
[1673592764406,0.05038403,18838.0,18837.0,1.85992799]
[1673592764636,0.05038403,18838.0,18837.0,2.19003799]
[1673592766281,0.05038403,18838.0,18837.0,2.151022]
[1673592766514,0.05038403,18838.0,18837.0,2.19003886]
[1673592772174,0.05038403,18838.0,18837.0,2.03204175]
[1673592772411,0.05038403,18838.0,18837.0,2.34802534]
[1673592774619,0.05038403,18838.0,18837.0,2.50688609]
[1673592775586,0.0503827,18838.0,18837.0,2.50688609]
[1673592776058,0.0503827,18838.0,18837.0,2.1985949]
[1673592776616,0.0503827,18838.0,18837.0,2.51576355]
[1673592777147,0.05027605,18838.0,18837.0,2.51576355]
[1673592777784,0.05027605,18838.0,18837.0,2.1985949]
[1673592778319,0.05027605,18838.0,18837.0,2.8349648]
[1673592779334,0.05027605,18838.0,18837.0,2.9759648]
[1673592780811,0.05027605,18838.0,18837.0,2.65884147]
[1673592781060,0.05027605,18838.0,18837.0,2.12325609]
[1673592781558,0.05027605,18838.0,18837.0,3.04203254]
[1673592781803,0.05027605,18838.0,18837.0,2.6716044]
[1673592782623,0.05027605,18838.0,18837.0,2.12325609]
[1673592783376,0.05027605,18838.0,18837.0,2.69962813]
[1673592783624,0.05027605,18838.0,18837.0,3.07005627]
[1673592783871,0.05027605,18838.0,18837.0,3.05005627]
[1673592784110,0.05027605,18838.0,18837.0,2.67962813]
[1673592784358,0.05027605,18838.0,18837.0,3.05005627]
[1673592784855,0.05027605,18838.0,18837.0,2.67962813]
[1673592785084,0.05027605,18838.0,18837.0,2.47368423]
[1673592785573,0.05027605,18838.0,18837.0,2.81043134]
[1673592785839,0.05027605,18838.0,18837.0,2.95143134]
[1673592786066,0.05027605,18838.0,18837.0,2.61468423]
[1673592786565,0.05027605,18838.0,18837.0,2.24425609]
[1673592786815,0.05027605,18838.0,18837.0,2.614998]
[1673592787814,0.01527605,18838.0,18837.0,2.612998]
[1673592788068,0.01727605,18838.0,18837.0,2.701998]
[1673592788817,0.01727605,18838.0,18837.0,2.70177897]
[1673592791864,0.01727605,18838.0,18837.0,3.32008983]
[1673592792088,0.01727605,18838.0,18837.0,2.70177897]
[1673592793019,0.01727605,18838.0,18837.0,2.33135083]
[1673592794076,0.01727605,18838.0,18837.0,2.70177897]
[1673592794325,0.01727605,18838.0,18837.0,2.30560341]
[1673592795316,0.01727605,18838.0,18837.0,1.93517527]
[1673592795564,0.01727605,18838.0,18837.0,2.93161409]
[1673592795825,0.01727179,18838.0,18837.0,2.30560341]
[1673592798490,0.01727179,18838.0,18837.0,2.84791197]
[1673592798740,0.01727179,18838.0,18837.0,2.30560341]
[1673592799232,0.01727179,18838.0,18837.0,2.96307957]
[1673592799487,0.01727179,18838.0,18837.0,2.30560341]
[1673592801743,0.01727179,18838.0,18837.0,2.33121003]
[1673592801991,0.01727179,18838.0,18837.0,2.92291149]
[1673592802736,0.01727179,18838.0,18837.0,2.88389463]
[1673592803482,0.01727179,18838.0,18837.0,2.29206226]
[1673592803736,0.01727179,18838.0,18837.0,3.00093607]
[1673592803977,0.01727179,18838.0,18837.0,2.97546036]
[1673592804230,0.01727179,18838.0,18837.0,2.26658655]
[1673592804972,0.01727179,18838.0,18837.0,2.93012155]
[1673592805220,0.01727179,18838.0,18837.0,2.77993918]
[1673592805468,0.01727179,18838.0,18837.0,2.26658655]
[1673592805726,0.01727179,18838.0,18837.0,2.81420237]
[1673592806500,0.01727179,18838.0,18837.0,2.4949558]
[1673592806753,0.01727179,18838.0,18837.0,2.12452766]
[1673592807960,0.01727179,18838.0,18837.0,1.57691184]
[1673592808173,0.01727179,18838.0,18837.0,2.12929177]
[1673592808931,0.01727179,18838.0,18837.0,2.52541273]
[1673592809444,0.01727179,18838.0,18837.0,2.38441273]
[1673592811173,0.01727179,18838.0,18837.0,2.38430137]
[1673592814364,0.01727179,18838.0,18837.0,1.98818041]
[1673592816088,0.01727758,18838.0,18837.0,1.98818041]
[1673592824889,0.01727758,18838.0,18837.0,1.91080217]
[1673592825145,0.01727758,18838.0,18837.0,2.44620179]
[1673592826104,0.01727758,18838.0,18837.0,2.54666031]
[1673592826595,0.01727758,18838.0,18837.0,2.68766031]
[1673592826882,0.01727758,18838.0,18837.0,3.3183421]
[1673592827120,0.01727758,18838.0,18837.0,2.68766031]
[1673592831399,0.01727758,18838.0,18837.0,2.68765031]
[1673592831868,0.01727758,18838.0,18837.0,3.26167704]
[1673592832518,0.01727758,18838.0,18837.0,2.68765031]
[1673592832881,0.01727758,18838.0,18837.0,3.23938831]
[1673592833113,0.01727758,18838.0,18837.0,2.31722217]
[1673592833347,0.01727758,18838.0,18837.0,2.86656249]
[1673592833561,0.01727758,18838.0,18837.0,3.23699063]
[1673592833776,0.01727758,18838.0,18837.0,2.68765031]
[1673592833999,0.01727758,18838.0,18837.0,2.31722217]
[1673592834642,0.01727758,18838.0,18837.0,2.68765031]
[1673592834856,0.01527758,18838.0,18837.0,3.19634678]
[1673592835076,0.01527758,18838.0,18837.0,3.2413656]
[1673592835287,0.01527758,18838.0,18837.0,2.87093746]
[1673592835714,0.01520312,18838.0,18837.0,3.2413656]
[1673592835966,0.01520312,18838.0,18837.0,3.34895393]
[1673592836207,0.01519975,18838.0,18837.0,2.4778105]
[1673592836475,0.01519975,18838.0,18837.0,2.84823864]
[1673592836715,0.01519975,18838.0,18837.0,3.48634334]
[1673592837201,0.01519975,18838.0,18837.0,2.84823864]
[1673592837456,0.01519975,18838.0,18837.0,3.42750317]
[1673592838438,0.01519975,18838.0,18837.0,2.84823864]
[1673592838663,0.01519975,18838.0,18837.0,3.4919074]
[1673592839641,0.01519975,18838.0,18837.0,2.84823864]
[1673592839889,0.01519975,18838.0,18837.0,3.3559801]
[1673592840603,0.01519975,18838.0,18837.0,3.10215832]
[1673592841584,0.01519975,18838.0,18837.0,2.83673832]
[1673592841827,0.01519975,18838.0,18837.0,2.36173663]
[1673592842069,0.01519975,18838.0,18837.0,2.22073663]
[1673592842318,0.01519975,18838.0,18837.0,2.28689018]
[1673592842532,0.01519975,18838.0,18837.0,2.22073663]
[1673592843753,0.01519975,18838.0,18837.0,1.89062663]
[1673592843990,0.01519975,18838.0,18837.0,2.22073663]
[1673592845228,0.01519975,18838.0,18837.0,2.48606663]
[1673592846011,0.00519975,18838.0,18837.0,2.48606663]
[1673592846747,0.00519975,18838.0,18837.0,2.88226209]
[1673592846996,0.00519975,18838.0,18837.0,2.48606663]
[1673592848682,0.00519975,18838.0,18837.0,2.88224061]
[1673592849687,0.00519975,18838.0,18837.0,2.88223815]
[1673592851423,0.00519975,18838.0,18837.0,2.48606663]
[1673592852444,0.00519975,18838.0,18837.0,1.86171881]
[1673592852692,0.00519975,18838.0,18837.0,2.55530562]
[1673592856562,0.00520252,18838.0,18837.0,2.55530562]
[1673592859726,0.00520252,18838.0,18837.0,1.86171881]
[1673592859981,0.00520252,18838.0,18837.0,1.53160881]
[1673592860224,0.00520252,18838.0,18837.0,2.39874026]
[1673592861222,0.00520252,18838.0,18837.0,2.13223417]
[1673592861466,0.00520252,18838.0,18837.0,2.5284014]
[1673592862645,0.00520252,18838.0,18837.0,2.1982914]
[1673592862855,0.00520252,18838.0,18837.0,2.5284014]
[1673592863355,0.00520252,18838.0,18837.0,2.52947749]
[1673592865892,0.00520252,18838.0,18837.0,2.13331026]
[1673592867590,0.00520252,18838.0,18837.0,2.44171864]
[1673592867836,0.00520252,18838.0,18837.0,2.58683283]
[1673592869842,0.00520252,18838.0,18837.0,2.11183114]
[1673592870316,0.00512645,18838.0,18837.0,2.11183114]
[1673592870562,0.00512645,18838.0,18837.0,2.32962863]
[1673592871071,0.00512645,18838.0,18837.0,2.32855254]
[1673592874632,0.00512645,18838.0,18837.0,2.32962863]
[1673592876821,0.00512221,18838.0,18837.0,2.32962863]
[1673592877876,0.00512221,18838.0,18837.0,2.28908799]
[1673592878125,0.00512221,18838.0,18837.0,2.8481311]
[1673592881550,0.00512221,18838.0,18837.0,2.55450799]
[1673592882063,0.00512221,18838.0,18837.0,3.23179986]
[1673592882297,0.00512221,18838.0,18837.0,3.13758622]
[1673592884732,0.00512221,18838.0,18837.0,2.55450799]
[1673592886143,0.00512221,18838.0,18837.0,3.10287467]
[1673592886886,0.00512221,18838.0,18837.0,2.55450799]
[1673592887127,0.00512221,18838.0,18837.0,3.14239272]
[1673592887832,0.00512221,18838.0,18837.0,2.55450799]
[1673592888088,0.00512221,18838.0,18837.0,3.19351326]
[1673592888584,0.00512221,18838.0,18837.0,2.55450799]
[1673592888831,0.00512221,18838.0,18837.0,3.16560297]
[1673592890571,0.00501328,18838.0,18837.0,3.16560297]
[1673592890820,0.00501328,18838.0,18837.0,2.55450799]
[1673592891305,0.00501328,18838.0,18837.0,3.21732931]
[1673592891545,0.00501328,18838.0,18837.0,2.55450799]
[1673592892044,0.00501328,18838.0,18837.0,3.14362532]
[1673592892295,0.00501328,18838.0,18837.0,2.55450799]
[1673592892537,0.00501328,18838.0,18837.0,3.16277642]
[1673592892813,0.00501328,18838.0,18837.0,2.55450799]
[1673592893280,0.00501328,18838.0,18837.0,3.09677336]
[1673592893774,0.00501328,18838.0,18837.0,2.55450799]
[1673592893989,0.00501328,18838.0,18837.0,3.17158709]
[1673592894965,0.00501328,18838.0,18837.0,2.55450799]
[1673592895212,0.00501328,18838.0,18837.0,2.92493613]
[1673592895450,0.00501328,18838.0,18837.0,2.55450799]
[1673592896682,0.00501328,18838.0,18837.0,2.92493613]
[1673592897161,0.005016,18838.0,18837.0,2.92493613]
[1673592898383,0.005016,18838.0,18837.0,2.92538945]
[1673592899852,0.005016,18838.0,18837.0,2.92537093]
[1673592900128,0.00543491,18839.0,18837.0,2.97616714]
[1673592900395,0.00543491,18839.0,18838.0,1.73983563]
[1673592900632,0.00543491,18839.0,18838.0,2.44128797]
[1673592901129,9.1e-07,18839.0,18838.0,2.44128797]
[1673592901367,0.01843075,18840.0,18838.0,2.96607467]
[1673592901614,0.01843075,18840.0,18839.0,1.19843563]
[1673592901857,0.02093709,18841.0,18840.0,0.1]
[1673592902100,0.02093709,18841.0,18840.0,1.77513397]
[1673592902352,0.02093709,18841.0,18840.0,2.21603397]
[1673592903367,0.02093709,18841.0,18840.0,2.21710989]
[1673592903640,0.02093709,18841.0,18840.0,2.35710989]
[1673592903889,0.02093709,18841.0,18840.0,1.88211155]
[1673592904141,0.02093709,18841.0,18840.0,1.37078341]
[1673592904422,0.02093709,18841.0,18840.0,1.63616341]
[1673592904672,0.02093709,18841.0,18840.0,2.27091401]
[1673592904846,0.02093709,18841.0,18840.0,2.65479857]
[1673592905124,0.02093709,18841.0,18840.0,2.00659155]
[1673592905345,0.02093709,18841.0,18840.0,1.63616341]
[1673592906846,0.02093709,18841.0,18840.0,2.00659155]
[1673592908302,0.02093709,18841.0,18840.0,1.63616341]
[1673592909041,0.02093709,18841.0,18840.0,2.03156325]
[1673592909517,0.02093709,18841.0,18840.0,2.7018944]
[1673592910448,0.02093709,18841.0,18840.0,3.01823355]
[1673592911183,0.02093709,18841.0,18840.0,2.71833054]
[1673592911412,0.02093709,18841.0,18840.0,2.03156325]
[1673592911634,0.02093709,18841.0,18840.0,2.60005703]
[1673592912344,0.02093709,18841.0,18840.0,2.03155152]
[1673592912592,0.02093709,18841.0,18840.0,1.63616341]
[1673592912815,0.02093709,18841.0,18840.0,2.64458215]
[1673592913070,0.02093709,18841.0,18840.0,2.53282425]
[1673592914338,0.02093709,18841.0,18840.0,3.00782259]
[1673592914585,0.02093709,18841.0,18840.0,2.53282425]
[1673592915316,0.02093709,18841.0,18840.0,2.16239611]
[1673592915615,0.02093709,18841.0,18840.0,2.53282425]
[1673592916118,0.02093709,18841.0,18840.0,2.16239611]
[1673592916601,0.02093709,18841.0,18840.0,2.53282425]
[1673592917325,0.02223393,18841.0,18840.0,2.53282425]
[1673592917564,0.02223393,18841.0,18840.0,2.16239611]
[1673592920289,0.02223393,18841.0,18840.0,2.16236611]
[1673592920996,0.02223393,18841.0,18840.0,2.72859186]
[1673592922250,0.02223393,18841.0,18840.0,3.09902]
[1673592922708,0.02223393,18841.0,18840.0,2.72859186]
[1673592922959,0.02223393,18841.0,18840.0,3.09902]
[1673592924269,0.02215732,18841.0,18840.0,3.09902]
[1673592925006,0.02093285,18842.0,18840.0,3.71401834]
[1673592925276,0.02093285,18842.0,18841.0,1.54456833]
[1673592925524,0.01843075,18843.0,18841.0,2.12596833]
[1673592925786,0.01843075,18843.0,18842.0,2.19105435]
[1673592927551,0.01843075,18843.0,18842.0,2.25905435]
[1673592928283,0.01843075,18843.0,18842.0,1.86393324]
[1673592928776,0.01843075,18843.0,18842.0,2.25900195]
[1673592928991,0.01843075,18843.0,18842.0,2.57507902]
[1673592929234,0.01843075,18843.0,18842.0,2.26007776]
[1673592929721,0.01843075,18843.0,18842.0,2.57615771]
[1673592929971,0.01843075,18843.0,18842.0,2.19207776]
[1673592930216,0.01843075,18843.0,18842.0,2.33307776]
[1673592933206,0.01843075,18843.0,18842.0,1.93800905]
[1673592934975,0.01843075,18843.0,18842.0,2.46424175]
[1673592935225,0.01843075,18843.0,18842.0,3.36273828]
[1673592935226,7.5e-07,18843.0,18842.0,3.36273828]
[1673592935442,0.01374898,18844.0,18843.0,0.01]
[1673592935695,9.8e-07,18844.0,18843.0,1.86076833]
[1673592935946,0.01656065,18847.0,18843.0,2.74190677]
[1673592936183,0.01656065,18847.0,18846.0,0.15807752]
[1673592936431,0.01656065,18847.0,18846.0,1.1253038]
[1673592936694,0.01656065,18847.0,18846.0,1.12529876]
[1673592936952,0.01656065,18847.0,18846.0,1.30056879]
[1673592937222,0.01656065,18847.0,18846.0,1.61672384]
[1673592937472,0.01656065,18847.0,18846.0,1.90472384]
[1673592937718,0.0178645,18847.0,18846.0,2.43092645]
[1673592938460,0.0178645,18847.0,18846.0,2.69621645]
[1673592940161,0.0178645,18847.0,18846.0,2.45913026]
[1673592940616,0.0178645,18847.0,18846.0,2.19384026]
[1673592940865,0.0178645,18847.0,18846.0,2.43087189]
[1673592942376,0.0178645,18847.0,18846.0,3.00069531]
[1673592942875,0.0178645,18847.0,18846.0,1.78137433]
[1673592943115,0.0178645,18847.0,18846.0,2.51973897]
[1673592943363,0.0178645,18847.0,18846.0,1.93937421]
[1673592943611,0.0178645,18847.0,18846.0,2.49698962]
[1673592943860,0.0178645,18847.0,18846.0,1.93937421]
[1673592944073,0.0178645,18847.0,18846.0,2.50791585]
[1673592944576,0.0178645,18847.0,18846.0,1.93937421]
[1673592944820,0.0178645,18847.0,18846.0,1.60217242]
[1673592945051,0.0178645,18847.0,18846.0,1.36514079]
[1673592946286,0.0178645,18847.0,18846.0,1.07610988]
[1673592946494,0.0178645,18847.0,18846.0,1.64233563]
[1673592946740,0.0178645,18847.0,18846.0,2.55564878]
[1673592946995,0.0178645,18847.0,18846.0,1.87936726]
[1673592947775,0.0178645,18847.0,18846.0,1.87136726]
[1673592948483,0.0178645,18847.0,18846.0,2.36002465]
[1673592949474,0.0178645,18847.0,18846.0,2.50102465]
[1673592949718,0.0178645,18847.0,18846.0,2.36002465]
[1673592949965,0.0178645,18847.0,18846.0,2.50102465]
[1673592950211,0.0178645,18847.0,18846.0,1.85436738]
[1673592950445,0.0178645,18847.0,18846.0,2.49796605]
[1673592950932,0.0178645,18847.0,18846.0,1.85436738]
[1673592951412,0.0178645,18847.0,18846.0,2.49793605]
[1673592951932,0.0178645,18847.0,18846.0,1.9317103]
[1673592952180,0.0178645,18847.0,18846.0,2.49793605]
[1673592952704,0.0178645,18847.0,18846.0,1.9317103]
[1673592953166,0.0178645,18847.0,18846.0,2.49793605]
[1673592953417,0.0178645,18847.0,18846.0,2.89312986]
[1673592953659,0.0178645,18847.0,18846.0,2.65609823]
[1673592953947,0.0178645,18847.0,18846.0,2.26090442]
[1673592954185,0.0178645,18847.0,18846.0,2.49787905]
[1673592955165,0.0178645,18847.0,18846.0,2.65609823]
[1673592955430,0.0178645,18847.0,18846.0,2.4978617]
[1673592956118,0.0178645,18847.0,18846.0,2.65609823]
[1673592956585,0.0178645,18847.0,18846.0,2.33994318]
[1673592956817,0.0178645,18847.0,18846.0,2.76344137]
[1673592957066,5e-07,18847.0,18846.0,2.76344137]
[1673592957309,0.01656065,18849.0,18846.0,2.36824756]
[1673592957569,0.01656065,18849.0,18848.0,1.2019503]
[1673592957819,0.01656065,18849.0,18848.0,1.83076043]
[1673592959853,0.01656065,18849.0,18848.0,1.5938657]
[1673592960094,0.01656065,18849.0,18848.0,1.83076043]
[1673592961471,0.01656065,18849.0,18848.0,1.67413048]
[1673592962110,0.01656065,18849.0,18848.0,2.46415056]
[1673592962359,0.01656065,18849.0,18848.0,2.30621892]
[1673592962621,0.01656065,18849.0,18848.0,2.63969315]
[1673592962861,0.01656065,18849.0,18848.0,2.87658053]
[1673592963100,0.01656065,18849.0,18848.0,1.8090631]
[1673592963343,0.01656065,18849.0,18848.0,2.37528885]
[1673592964334,0.01656065,18849.0,18848.0,1.8090631]
[1673592964573,0.01656065,18849.0,18848.0,2.37528885]
[1673592965078,0.01656065,18849.0,18848.0,2.46571736]
[1673592965323,0.01656065,18849.0,18848.0,2.22882998]
[1673592965559,0.01656065,18849.0,18848.0,2.46574461]
[1673592967024,6.5e-07,18849.0,18848.0,2.99197731]
[1673592967276,1.20907644,18852.0,18849.0,0.1]
[1673592967277,0.94315544,18852.0,18849.0,0.1]
[1673592967525,0.62564744,18852.0,18851.0,0.94675594]
[1673592967796,0.62564744,18852.0,18851.0,1.43296404]
[1673592968273,0.62564744,18852.0,18851.0,1.57386404]
[1673592968555,0.62564744,18852.0,18851.0,2.34124375]
[1673592969059,0.01832835,18853.0,18852.0,0.1]
[1673592969301,0.01832835,18853.0,18852.0,0.94813564]
[1673592969531,0.01832835,18853.0,18852.0,1.01151]
[1673592970254,0.01832835,18853.0,18852.0,1.15251]
[1673592971530,0.01832835,18853.0,18852.0,1.31016465]
[1673592971742,0.01832835,18853.0,18852.0,1.76965266]
[1673592972212,0.01832835,18853.0,18852.0,1.66965266]
[1673592972450,0.01832835,18853.0,18852.0,1.05251]
[1673592972697,0.01832835,18853.0,18852.0,1.21016465]
[1673592973001,0.01832835,18853.0,18852.0,1.44679029]
[1673592973249,0.01832835,18853.0,18852.0,1.21016465]
[1673592975470,0.01832835,18853.0,18852.0,1.5787427]
[1673592975712,0.01832835,18853.0,18852.0,1.73639735]
[1673592975951,0.01832835,18853.0,18852.0,1.44029314]
[1673592977218,0.01832835,18853.0,18852.0,1.74029314]
[1673592978227,0.01963197,18853.0,18852.0,1.74029314]
[1673592979450,0.01963197,18853.0,18852.0,1.45889314]
[1673592983353,0.01963197,18853.0,18852.0,1.45996838]
[1673592985543,0.01963197,18853.0,18852.0,0.77218524]
[1673592985801,0.01963197,18853.0,18852.0,0.87218524]
[1673592986294,0.01963197,18853.0,18852.0,1.43841099]
[1673592986544,0.01963197,18853.0,18852.0,1.99090634]
[1673592986797,0.01963197,18853.0,18852.0,0.87218524]
[1673592987028,0.01963197,18853.0,18852.0,1.43841099]
[1673592987274,0.01963197,18853.0,18852.0,0.87218524]
[1673592987516,0.01963197,18853.0,18852.0,1.37882849]
[1673592987761,0.01963197,18853.0,18852.0,0.87218524]
[1673592988301,0.01963197,18853.0,18852.0,1.57382235]
[1673592988551,0.01963197,18853.0,18852.0,0.87218524]
[1673592988796,0.01963197,18853.0,18852.0,1.49343185]
[1673592989042,0.01963197,18853.0,18852.0,0.87218524]
[1673592989287,0.01963197,18853.0,18852.0,1.43841099]
[1673592989537,0.01963197,18853.0,18852.0,1.96480994]
[1673592989784,0.01963197,18853.0,18852.0,1.43841099]
[1673592990056,0.01963197,18853.0,18852.0,1.99770503]
[1673592990308,0.01963197,18853.0,18852.0,1.89770503]
[1673592990571,0.01945768,18853.0,18852.0,1.89770503]
[1673592991057,0.01945768,18853.0,18852.0,1.33841099]
[1673592991297,0.01945768,18853.0,18852.0,2.04540271]
[1673592991543,0.01945768,18853.0,18852.0,1.33841099]
[1673592991757,0.01945768,18853.0,18852.0,1.87175761]
[1673592992540,0.01945768,18853.0,18852.0,1.33841099]
[1673592992805,0.01945768,18853.0,18852.0,1.49606564]
[1673592993572,0.01945768,18853.0,18852.0,1.73269128]
[1673592994065,0.01945768,18853.0,18852.0,1.49606564]
[1673592994310,0.01945768,18853.0,18852.0,1.73269128]
[1673592996523,0.01945768,18853.0,18852.0,2.23042213]
[1673592997013,0.01945768,18853.0,18852.0,2.72791452]
[1673592997282,0.01945768,18853.0,18852.0,2.53939486]
[1673592997503,0.01945768,18853.0,18852.0,2.912594]
[1673592998519,0.01945309,18853.0,18852.0,2.912594]
[1673592999241,0.01945309,18853.0,18852.0,3.177764]
[1673592999500,0.02308342,18855.0,18852.0,3.79201192]
[1673592999748,0.02308342,18855.0,18854.0,1.27584486]
[1673593000009,0.02308342,18855.0,18854.0,2.89618898]
[1673593000510,0.02308342,18855.0,18854.0,3.48012021]
[1673593000762,0.02308342,18855.0,18854.0,3.10692503]
[1673593001021,0.02308342,18855.0,18854.0,3.24792503]
[1673593001798,0.02308342,18855.0,18854.0,3.2478196]
[1673593003317,0.02308342,18855.0,18854.0,3.24889472]
[1673593004062,0.02308342,18855.0,18854.0,3.09117047]
[1673593006719,0.02308342,18855.0,18854.0,2.85466188]
[1673593007016,0.02308342,18855.0,18854.0,3.24889472]
[1673593007997,0.02308342,18855.0,18854.0,3.19352467]
[1673593008269,0.02308342,18855.0,18854.0,3.24671051]
[1673593008490,0.02308342,18855.0,18854.0,3.24670774]
[1673593008768,0.02308342,18855.0,18854.0,2.93132758]
[1673593009025,0.02308342,18855.0,18854.0,3.07192758]
[1673593009277,0.02308342,18855.0,18854.0,3.05089388]
[1673593009527,0.02308342,18855.0,18854.0,3.44506038]
[1673593009762,0.02308342,18855.0,18854.0,3.30406038]
[1673593010022,0.02308342,18855.0,18854.0,3.24616403]
[1673593010506,0.02308342,18855.0,18854.0,2.99199753]
[1673593010755,0.02308342,18855.0,18854.0,3.75936317]
[1673593011002,0.02308342,18855.0,18854.0,3.38616403]
[1673593011251,0.02308342,18855.0,18854.0,3.07086124]
[1673593011498,0.02308342,18855.0,18854.0,3.38616919]
[1673593011994,0.02308342,18855.0,18854.0,3.33309914]
[1673593012252,0.02308342,18855.0,18854.0,3.38616919]
[1673593013243,0.02308342,18855.0,18854.0,2.81994344]
[1673593013493,0.02308342,18855.0,18854.0,3.38616919]
[1673593014956,0.02308342,18855.0,18854.0,3.07086124]
[1673593015727,0.02308342,18855.0,18854.0,3.38604704]
[1673593015972,0.02308342,18855.0,18854.0,3.07086124]
[1673593016733,0.02308342,18855.0,18854.0,3.38604412]
[1673593018538,0.02228112,18855.0,18854.0,3.38604412]
[1673593018777,0.02358332,18855.0,18854.0,2.99187762]
[1673593019532,0.02358332,18855.0,18854.0,3.22827016]
[1673593020028,0.02358332,18855.0,18854.0,2.99187762]
[1673593020789,0.02358332,18855.0,18854.0,3.38604412]
[1673593021524,0.02358332,18855.0,18854.0,3.22829905]
[1673593022791,0.02358332,18855.0,18854.0,3.81028029]
[1673593023051,0.02358332,18855.0,18854.0,2.88397722]
[1673593023299,0.02358332,18855.0,18854.0,3.12039865]
[1673593024066,0.02358332,18855.0,18854.0,3.1734687]
[1673593024311,0.02358332,18855.0,18854.0,2.59148746]